[Event "GER-ch Youth U16w 2019"]
[Site "Willingen"]
[Date "2019.06.14"]
[Round "8.6"]
[White "Brunner, Sophia"]
[Black "Rudolph, Eva"]
[Result "1-0"]
[ECO "A00"]
[WhiteElo "1839"]
[BlackElo "1786"]
[Annotator "NA"]
[PlyCount "119"]
[EventDate "2019.06.07"]
[EventType "swiss"]
[EventRounds "9"]
[EventCountry "GER"]
[SourceTitle "playchess.com"]
[Source "ChessBase"]
[SourceQuality "1"]
[TimeControl "40/5400+30:1800+30"]

1. b4 {[%emt 0:00:00]} e5 {[%emt 0:04:21]} 2. a3 {[%emt 0:00:00]} d5 {[%emt 0:01:41]} 3. Bb2 {[%emt 0:00:00]} Bd6 {[%emt 0:00:59]} 4. c4 {[%emt 0:00:00]} c6 {[%emt 0:00:42]} 5. e3 {[%emt 0:00:00]} Nd7 {[%emt 0:05:06]} 6. Nf3 {[%emt 0:00:41]} Ne7 {[%emt 0:03:10]} 7. Nc3 {[%emt 0:01:49]} O-O {[%emt 0:01:59]} 8. Qc2 {[%emt 0:00:50]} Re8 {[%emt 0:01:47]} 9. Rc1 {[%emt 0:06:03]} Nf6 {[%emt 0:08:44]} 10. cxd5 {[%emt 0:07:16]} Nexd5 {[%emt 0:01:48]} 11. Nxd5 Nxd5 12. Qe4 {[%emt 0:03:49]} Bd7 {[%emt 0:08:59]} 13. Bc4 {[%emt 0:12:01]} Nf6 {[%emt 0:02:24]} 14. Qc2 {[%emt 0:04:47]} Qe7 {[%emt 0:08:39]} 15. Ng5 {[%emt 0:05:24]} Rf8 {[%emt 0:01:40]} 16. f4 {[%emt 0:16:17]} g6 {[%emt 0:08:32]} 17. O-O {[%emt 0:11:08]} Rae8 {[%emt 0:10:18]} 18. h4 {[%emt 0:10:20]} exf4 {[%emt 0:07:26]} 19. exf4 {[%emt 0:07:14]} Nd5 {[%emt 0:02:20]} 20. Bxd5 {[%emt 0:03:37]} cxd5 {[%emt 0:00:05]} 21. Qd3 {[%emt 0:00:38]} Be6 {[%emt 0:03:35]} 22. Rce1 {[%emt 0:02:28]} Qd7 {[%emt 0:02:15]} 23. Qd4 {[%emt 0:01:07]} f6 {[%emt 0:00:12]} 24. Nxe6 {[%emt 0:00:36]} Rxe6 {[%emt 0:00:03]} 25. Qxd5 {[%emt 0:01:13]} Rfe8 {[%emt 0:00:21]} 26. Rxe6 {[%emt 0:01:03]} Qxe6 {[%emt 0:01:35]} 27. Qxb7 {[%emt 0:02:02]} Re7 {[%emt 0:01:08]} 28. Qf3 {[%emt 0:00:51]} Qf5 {[%emt 0:03:33]} 29. g3 {[%emt 0:01:10]} Bc7 {[%emt 0:01:54]} 30. Bd4 {[%emt 0:01:37]} Bb6 {[%emt 0:00:38]} 31. Bxb6 {[%emt 0:00:23]} axb6 {[%emt 0:00:01]} 32. Rc1 {[%emt 0:00:19]} Qd7 {[%emt 0:00:32]} 33. Qf2 {[%emt 0:00:33]} Qd3 {[%emt 0:00:56]} 34. Rc3 {[%emt 0:00:51]} Qd6 {[%emt 0:03:41]} 35. Re3 {[%emt 0:00:27]} Rc7 {[%emt 0:02:04]} 36. Rc3 {[%emt 0:00:14]} Rd7 {[%emt 0:00:43]} 37. d3 {[%emt 0:00:16]} Rc7 {[%emt 0:02:16]} 38. Rxc7 {[%emt 0:00:25]} Qxc7 {[%emt 0:00:01]} 39. Qd2 {[%emt 0:00:36]} Qc6 {[%emt 0:00:30]} 40. Kf2 {[%emt 0:01:07]} Qh1 {[%emt 0:01:51]} 41. Qe3 {[%emt 0:04:59]} Qh2+ {[%emt 0:01:21]} 42. Ke1 {[%emt 0:00:58]} Qh1+ {[%emt 0:01:49]} 43. Kd2 {[%emt 0:01:07]} Qg2+ {[%emt 0:00:40]} 44. Kc3 {[%emt 0:00:20]} Qa2 {[%emt 0:02:49]} 45. Qxb6 {[%emt 0:02:17]} Qxa3+ {[%emt 0:00:19]} 46. Kc4 {[%emt 0:02:07]} Qa2+ {[%emt 0:00:35]} 47. Kb5 {[%emt 0:01:52]} Qd5+ {[%emt 0:02:24]} 48. Qc5 {[%emt 0:00:09]} Qd7+ {[%emt 0:01:13]} 49. Kc4 {[%emt 0:00:20]} Kg7 {[%emt 0:00:38]} 50. b5 {[%emt 0:00:09]} Qe6+ {[%emt 0:01:48]} 51. Qd5 {[%emt 0:01:12]} Qc8+ {[%emt 0:01:13]} 52. Kb4 {[%emt 0:01:36]} Qc7 {[%emt 0:02:04]} 53. Qc5 {[%emt 0:01:20]} Qd7 {[%emt 0:01:24]} 54. d4 {[%emt 0:00:16]} Qe6 {[%emt 0:01:03]} 55. b6 {[%emt 0:00:31]} Qe1+ {[%emt 0:00:33]} 56. Kb5 {[%emt 0:00:05]} Qb1+ {[%emt 0:00:33]} 57. Kc6 {[%emt 0:00:18]} Qe4+ {[%emt 0:00:20]} 58. d5 {[%emt 0:00:50]} Qe8+ {[%emt 0:00:24]} 59. Kb7 {[%emt 0:00:10]} Kh6 {[%emt 0:01:47]} 60. d6 {[%emt 0:01:14] normal} 1-0

[Event "GER-ch Youth U16w 2019"]
[Site "Willingen"]
[Date "2019.06.14"]
[Round "8.7"]
[White "Stowicek, Yara Mathilda"]
[Black "Wagner, Victoria"]
[Result "0-1"]
[ECO "B22"]
[WhiteElo "1692"]
[BlackElo "1808"]
[Annotator "NA"]
[PlyCount "74"]
[EventDate "2019.06.07"]
[EventType "swiss"]
[EventRounds "9"]
[EventCountry "GER"]
[SourceTitle "playchess.com"]
[Source "ChessBase"]
[SourceQuality "1"]
[TimeControl "40/5400+30:1800+30"]

1. e4 c5 {[%emt 0:00:00]} 2. c3 {[%emt 0:00:03]} Nf6 {[%emt 0:00:00]} 3. e5 {[%emt 0:00:00]} Nd5 {[%emt 0:00:00]} 4. d4 {[%emt 0:00:00]} cxd4 {[%emt 0:00:00]} 5. Qxd4 {[%emt 0:00:08]} e6 {[%emt 0:00:00]} 6. Nf3 {[%emt 0:00:59]} Nc6 {[%emt 0:01:43]} 7. Qe4 {[%emt 0:00:07]} f5 {[%emt 0:00:32]} 8. Qe2 {[%emt 0:00:38]} Qc7 {[%emt 0:00:24]} 9. g3 {[%emt 0:02:45]} b6 {[%emt 0:00:22]} 10. Bg2 {[%emt 0:01:08]} Ncb4 {[%emt 0:00:57]} 11. c4 {[%emt 0:15:51]} Ba6 {[%emt 0:00:44]} 12. b3 {[%emt 0:00:57]} b5 {[%emt 0:01:15]} 13. Na3 {[%emt 0:15:49]} Nc3 {[%emt 0:03:23]} 14. Qd2 {[%emt 0:07:24]} Ne4 {[%emt 0:00:56]} 15. Qe2 {[%emt 0:00:36]} bxc4 {[%emt 0:04:00]} 16. bxc4 {[%emt 0:01:30]} Rc8 {[%emt 0:01:28]} 17. Nh4 {[%emt 0:05:14]} g6 {[%emt 0:11:54]} 18. Bb2 {[%emt 0:19:16]} Bxc4 {[%emt 0:06:16]} 19. Nxc4 {[%emt 0:00:34]} Qxc4 {[%emt 0:00:32]} 20. Qxc4 {[%emt 0:02:09]} Rxc4 {[%emt 0:00:29]} 21. O-O {[%emt 0:00:32]} Nd3 {[%emt 0:04:37]} 22. Bxe4 {[%emt 0:05:17]} fxe4 {[%emt 0:05:33]} 23. Rab1 {[%emt 0:06:26]} Bc5 {[%emt 0:05:51]} 24. Ng2 {[%emt 0:05:23]} O-O {[%emt 0:04:33]} 25. Nf4 {[%emt 0:03:40]} Nxf2 {[%emt 0:09:34]} 26. Kg2 {[%emt 0:01:57]} Ng4 {[%emt 0:04:17]} 27. Rfc1 {[%emt 0:00:30]} Ne3+ {[%emt 0:02:08]} 28. Kh1 Rb8 {[%emt 0:06:56]} 29. Ba1 {[%emt 0:02:28]} Rxb1 {[%emt 0:01:21]} 30. Rxb1 {[%emt 0:00:06]} Bb6 {[%emt 0:01:47]} 31. a3 {[%emt 0:01:03]} Ng4 {[%emt 0:02:24]} 32. h3 {[%emt 0:01:07]} Nf2+ {[%emt 0:00:21]} 33. Kg2 {[%emt 0:00:16]} Rc2 {[%emt 0:00:14]} 34. a4 {[%emt 0:00:53]} Ng4+ {[%emt 0:02:46]} 35. Kf1 {[%emt 0:00:09]} Rf2+ {[%emt 0:00:15]} 36. Ke1 {[%emt 0:00:14]} Ba5+ {[%emt 0:00:09]} 37. Kd1 {[%emt 0:00:19]} Ne3+ {[%emt 0:00:05] normal} 0-1

[Event "GER-ch Youth U16w 2019"]
[Site "Willingen"]
[Date "2019.06.14"]
[Round "8.8"]
[White "Meijerink, Inken"]
[Black "Klemke, Kassandra"]
[Result "1-0"]
[ECO "B02"]
[WhiteElo "1681"]
[BlackElo "1662"]
[Annotator "NA"]
[PlyCount "69"]
[EventDate "2019.06.07"]
[EventType "swiss"]
[EventRounds "9"]
[EventCountry "GER"]
[SourceTitle "playchess.com"]
[Source "ChessBase"]
[SourceQuality "1"]
[TimeControl "40/5400+30:1800+30"]

1. e4 {[%emt 0:00:00]} Nf6 {[%emt 0:00:00]} 2. Nc3 {[%emt 0:00:31]} d5 {[%emt 0:00:00]} 3. exd5 {[%emt 0:00:36]} Nxd5 {[%emt 0:00:01]} 4. g3 {[%emt 0:00:46]} e6 {[%emt 0:02:11]} 5. Bg2 {[%emt 0:00:19]} c5 {[%emt 0:03:10]} 6. Nf3 {[%emt 0:02:59]} Nc6 {[%emt 0:01:02]} 7. O-O {[%emt 0:02:02]} Be7 {[%emt 0:01:24]} 8. Nxd5 {[%emt 0:05:05]} exd5 {[%emt 0:01:55]} 9. d4 {[%emt 0:02:14]} c4 {[%emt 0:00:57]} 10. c3 {[%emt 0:04:44]} O-O {[%emt 0:00:56]} 11. Ne5 {[%emt 0:03:07]} Be6 {[%emt 0:05:04]} 12. b3 {[%emt 0:11:13]} Nxe5 {[%emt 0:03:18]} 13. dxe5 {[%emt 0:00:10]} b5 {[%emt 0:01:13]} 14. Be3 {[%emt 0:02:29]} Qc7 {[%emt 0:04:25]} 15. Bd4 {[%emt 0:03:19]} Qd7 {[%emt 0:07:09]} 16. b4 {[%emt 0:07:01]} Bh3 {[%emt 0:03:20]} 17. Bxh3 {[%emt 0:00:34]} Qxh3 {[%emt 0:00:09]} 18. a4 {[%emt 0:00:04]} a6 {[%emt 0:01:29]} 19. Qf3 {[%emt 0:01:23]} Qe6 {[%emt 0:01:20]} 20. Qe3 {[%emt 0:00:32]} Qc6 {[%emt 0:06:33]} 21. a5 {[%emt 0:01:13]} Rfe8 {[%emt 0:01:43]} 22. f4 {[%emt 0:02:00]} Rad8 {[%emt 0:03:33]} 23. Rad1 {[%emt 0:00:20]} Bd6 {[%emt 0:01:41]} 24. Qf3 {[%emt 0:01:46]} Bc7 {[%emt 0:00:27]} 25. Rd2 {[%emt 0:00:46]} Rd7 {[%emt 0:01:34]} 26. Rfd1 {[%emt 0:00:23]} Red8 {[%emt 0:00:26]} 27. f5 {[%emt 0:06:19]} Re8 {[%emt 0:03:13]} 28. Re2 {[%emt 0:00:28]} Rde7 {[%emt 0:01:42]} 29. f6 {[%emt 0:02:55]} Re6 {[%emt 0:02:17]} 30. Qg4 {[%emt 0:01:51]} g6 {[%emt 0:01:30]} 31. Qg5 {[%emt 0:03:27]} Bxe5 {[%emt 0:08:21]} 32. Rxe5 {[%emt 0:00:43]} Rxe5 {[%emt 0:01:16]} 33. Bxe5 {[%emt 0:00:11]} Qe6 {[%emt 0:00:24]} 34. Qh6 {[%emt 0:00:35]} Qxe5 {[%emt 0:00:20]} 35. Qg7# {[%emt 0:00:05] normal} 1-0

[Event "GER-ch Youth U16w 2019"]
[Site "Willingen"]
[Date "2019.06.14"]
[Round "8.9"]
[White "Zell, Hannah"]
[Black "Huppert, Anna"]
[Result "1/2-1/2"]
[ECO "A25"]
[WhiteElo "1473"]
[BlackElo "1515"]
[Annotator "NA"]
[PlyCount "41"]
[EventDate "2019.06.07"]
[EventType "swiss"]
[EventRounds "9"]
[EventCountry "GER"]
[SourceTitle "playchess.com"]
[Source "ChessBase"]
[SourceQuality "1"]
[TimeControl "40/5400+30:1800+30"]

1. c4 {[%emt 0:00:00]} e5 {[%emt 0:00:00]} 2. g3 {[%emt 0:00:00]} g6 {[%emt 0:00:00]} 3. Bg2 {[%emt 0:00:00]} Bg7 {[%emt 0:00:02]} 4. Nc3 {[%emt 0:00:03]} Nc6 {[%emt 0:00:22]} 5. Rb1 {[%emt 0:00:21]} Nge7 {[%emt 0:01:13]} 6. e3 {[%emt 0:01:05]} d6 {[%emt 0:00:52]} 7. Nge2 {[%emt 0:00:58]} Bf5 {[%emt 0:03:05]} 8. d3 {[%emt 0:04:22]} Qd7 {[%emt 0:02:33]} 9. f3 {[%emt 0:10:48]} Nb4 {[%emt 0:04:37]} 10. e4 {[%emt 0:00:18]} Be6 {[%emt 0:01:37]} 11. a3 {[%emt 0:01:00]} Nbc6 {[%emt 0:00:53]} 12. b4 {[%emt 0:01:20]} a5 {[%emt 0:03:52]} 13. Qb3 {[%emt 0:06:10]} O-O {[%emt 0:04:29]} 14. O-O {[%emt 0:02:41]} Bh3 {[%emt 0:05:14]} 15. g4 {[%emt 0:08:55]} Bxg2 {[%emt 0:00:52]} 16. Kxg2 {[%emt 0:00:07]} axb4 {[%emt 0:05:57]} 17. axb4 {[%emt 0:02:17]} Nd4 {[%emt 0:03:00]} 18. Qb2 {[%emt 0:04:02]} c6 {[%emt 0:05:34]} 19. Be3 {[%emt 0:03:15]} f5 {[%emt 0:05:03]} 20. h3 {[%emt 0:04:21]} d5 {[%emt 0:08:13]} 21. Ra1 {[%emt 0:09:51] normal} 1/2-1/2

[Event "GER-ch Youth U16w 2019"]
[Site "Willingen"]
[Date "2019.06.14"]
[Round "8.10"]
[White "Sokolowski, Judith"]
[Black "Peschel, Julia"]
[Result "1-0"]
[ECO "C54"]
[WhiteElo "1749"]
[BlackElo "1275"]
[Annotator "NA"]
[PlyCount "81"]
[EventDate "2019.06.07"]
[EventType "swiss"]
[EventRounds "9"]
[EventCountry "GER"]
[SourceTitle "playchess.com"]
[Source "ChessBase"]
[SourceQuality "1"]
[TimeControl "40/5400+30:1800+30"]

1. e4 {[%emt 0:00:00]} e5 {[%emt 0:00:00]} 2. Nf3 {[%emt 0:00:00]} Nc6 {[%emt 0:00:00]} 3. Bc4 {[%emt 0:00:00]} Bc5 {[%emt 0:00:17]} 4. c3 {[%emt 0:00:06]} Nf6 {[%emt 0:00:14]} 5. d4 {[%emt 0:00:10]} exd4 {[%emt 0:00:44]} 6. cxd4 {[%emt 0:00:04]} Bb4+ {[%emt 0:00:30]} 7. Bd2 {[%emt 0:00:07]} Bxd2+ {[%emt 0:00:39]} 8. Nbxd2 {[%emt 0:00:03]} d5 {[%emt 0:10:23]} 9. exd5 {[%emt 0:03:13]} Nxd5 {[%emt 0:00:59]} 10. O-O {[%emt 0:01:39]} O-O {[%emt 0:00:28]} 11. Rc1 {[%emt 0:01:52]} Nb6 {[%emt 0:09:37]} 12. Bb3 {[%emt 0:33:53]} Bg4 {[%emt 0:13:57]} 13. h3 {[%emt 0:02:02]} Bh5 {[%emt 0:01:19]} 14. Rc5 {[%emt 0:02:47]} Bg6 {[%emt 0:05:46]} 15. Qc1 {[%emt 0:06:45]} Rc8 {[%emt 0:02:08]} 16. Rd1 {[%emt 0:06:40]} Nb4 {[%emt 0:12:42]} 17. Qc3 {[%emt 0:07:14]} Nd3 {[%emt 0:02:10]} 18. Ra5 {[%emt 0:02:11]} a6 {[%emt 0:05:58]} 19. Ne5 {[%emt 0:07:53]} Nxe5 {[%emt 0:09:17]} 20. dxe5 {[%emt 0:03:58]} Qe7 {[%emt 0:01:41]} 21. Nf3 {[%emt 0:01:36]} Rfd8 {[%emt 0:02:39]} 22. Rxd8+ {[%emt 0:04:21]} Rxd8 {[%emt 0:00:11]} 23. Rc5 {[%emt 0:02:11]} c6 {[%emt 0:03:00]} 24. Qa5 {[%emt 0:01:59]} Nd7 {[%emt 0:01:05]} 25. Rc1 {[%emt 0:01:11]} Re8 {[%emt 0:01:46]} 26. Re1 {[%emt 0:01:57]} Nc5 {[%emt 0:01:33]} 27. Qc3 {[%emt 0:02:16]} Nd3 {[%emt 0:02:12]} 28. Re3 {[%emt 0:01:44]} Nf4 {[%emt 0:03:36]} 29. Qd4 {[%emt 0:02:15]} Ne6 {[%emt 0:01:02]} 30. Qg4 {[%emt 0:01:29]} Nc5 {[%emt 0:01:46]} 31. h4 {[%emt 0:01:08]} Nxb3 {[%emt 0:01:45]} 32. Rxb3 {[%emt 0:00:26]} h5 {[%emt 0:00:43]} 33. Qc4 {[%emt 0:01:45]} Rd8 {[%emt 0:01:44]} 34. Kh2 {[%emt 0:00:54]} Bf5 {[%emt 0:00:52]} 35. Qf4 {[%emt 0:00:29]} Be6 {[%emt 0:01:18]} 36. Ra3 {[%emt 0:00:17]} Rd1 {[%emt 0:01:29]} 37. Ng5 {[%emt 0:00:47]} Rb1 {[%emt 0:01:00]} 38. Qe4 {[%emt 0:00:28]} Qc5 {[%emt 0:01:59]} 39. Qxb1 {[%emt 0:00:37]} Qxe5+ {[%emt 0:00:21]} 40. Rg3 {[%emt 0:00:31]} Bf5 {[%emt 0:00:33]} 41. Qd1 {[%emt 0:01:02] normal} 1-0

[Event "GER-ch Youth U16w 2019"]
[Site "Willingen"]
[Date "2019.06.14"]
[Round "8.11"]
[White "Sinnhoefer, Lilian"]
[Black "Jacoby, Angelina"]
[Result "1/2-1/2"]
[ECO "B00"]
[WhiteElo "1396"]
[BlackElo "1412"]
[Annotator "NA"]
[PlyCount "50"]
[EventDate "2019.06.07"]
[EventType "swiss"]
[EventRounds "9"]
[EventCountry "GER"]
[SourceTitle "playchess.com"]
[Source "ChessBase"]
[SourceQuality "1"]
[TimeControl "40/5400+30:1800+30"]

1. e4 {[%emt 0:00:00]} d6 {[%emt 0:00:00]} 2. d4 {[%emt 0:00:00]} g6 {[%emt 0:00:09]} 3. c4 {[%emt 0:00:08]} Nd7 {[%emt 0:02:17]} 4. Nc3 {[%emt 0:02:26]} Ngf6 {[%emt 0:01:58]} 5. g3 {[%emt 0:01:11]} Bg7 {[%emt 0:00:54]} 6. Bg2 {[%emt 0:03:04]} O-O {[%emt 0:00:16]} 7. Nf3 {[%emt 0:02:09]} e5 {[%emt 0:02:17]} 8. O-O {[%emt 0:03:41]} Qe7 {[%emt 0:05:54]} 9. b3 {[%emt 0:09:27]} h6 {[%emt 0:16:58]} 10. Bb2 {[%emt 0:07:18]} b6 {[%emt 0:01:19]} 11. dxe5 {[%emt 0:09:54]} dxe5 {[%emt 0:02:17]} 12. Nd5 {[%emt 0:05:08]} Nxd5 {[%emt 0:01:22]} 13. Qxd5 {[%emt 0:01:00]} Ba6 {[%emt 0:08:43]} 14. Rad1 {[%emt 0:14:33]} Rad8 {[%emt 0:02:23]} 15. Qc6 {[%emt 0:06:43]} Nc5 {[%emt 0:02:15]} 16. Ba3 {[%emt 0:00:45]} Rxd1 {[%emt 0:09:55]} 17. Rxd1 {[%emt 0:00:40]} Rd8 {[%emt 0:02:41]} 18. Rxd8+ {[%emt 0:04:14]} Qxd8 {[%emt 0:01:38]} 19. Bxc5 {[%emt 0:03:15]} Qd1+ {[%emt 0:01:59]} 20. Bf1 {[%emt 0:00:43]} Qxf3 {[%emt 0:00:36]} 21. Be3 {[%emt 0:00:14]} Kh7 {[%emt 0:04:14]} 22. Qxc7 {[%emt 0:01:17]} Qxe4 {[%emt 0:00:18]} 23. Bg2 {[%emt 0:02:34]} Qb1+ {[%emt 0:04:08]} 24. Bf1 {[%emt 0:00:09]} Qe4 {[%emt 0:00:23]} 25. Bg2 {[%emt 0:06:21]} Qb1+ {[%emt 0:00:26] normal} 1/2-1/2

[Event "GER-ch Youth U16w 2019"]
[Site "Willingen"]
[Date "2019.06.14"]
[Round "8.12"]
[White "Dietz, Helena"]
[Black "Wucherer, Sophie"]
[Result "0-1"]
[ECO "A45"]
[WhiteElo "1534"]
[BlackElo "1496"]
[Annotator "NA"]
[PlyCount "114"]
[EventDate "2019.06.07"]
[EventType "swiss"]
[EventRounds "9"]
[EventCountry "GER"]
[SourceTitle "playchess.com"]
[Source "ChessBase"]
[SourceQuality "1"]
[TimeControl "40/5400+30:1800+30"]

1. d4 {[%emt 0:00:00]} Nf6 {[%emt 0:00:00]} 2. Bf4 {[%emt 0:00:00]} g6 {[%emt 0:00:04]} 3. e3 {[%emt 0:00:00]} Bg7 {[%emt 0:00:15]} 4. Nf3 {[%emt 0:00:37]} O-O {[%emt 0:00:21]} 5. c4 {[%emt 0:01:47]} c5 {[%emt 0:01:25]} 6. Nc3 {[%emt 0:01:04]} cxd4 {[%emt 0:02:32]} 7. exd4 {[%emt 0:00:02]} a6 {[%emt 0:45:58]} 8. Be2 {[%emt 0:01:59]} d5 {[%emt 0:00:13]} 9. b3 {[%emt 0:07:51]} Nc6 {[%emt 0:04:08]} 10. O-O {[%emt 0:04:38]} Be6 {[%emt 0:04:49]} 11. Be3 {[%emt 0:04:34]} Ne4 {[%emt 0:03:10]} 12. Rc1 {[%emt 0:11:04]} Qa5 {[%emt 0:05:32]} 13. Nxe4 {[%emt 0:15:44]} dxe4 {[%emt 0:00:22]} 14. Ng5 {[%emt 0:00:06]} Nxd4 {[%emt 0:05:10]} 15. Bxd4 {[%emt 0:10:54]} Qxg5 {[%emt 0:00:36]} 16. Bxg7 {[%emt 0:00:26]} Kxg7 {[%emt 0:00:06]} 17. Qd4+ {[%emt 0:00:18]} Kg8 {[%emt 0:01:05]} 18. Qxe4 {[%emt 0:00:22]} b6 {[%emt 0:00:41]} 19. Rcd1 {[%emt 0:01:31]} h5 {[%emt 0:07:07]} 20. Bf3 {[%emt 0:02:50]} Qa5 {[%emt 0:01:57]} 21. Qc2 {[%emt 0:01:10]} Rac8 {[%emt 0:00:27]} 22. Qe2 {[%emt 0:01:06]} Rc5 {[%emt 0:01:33]} 23. Rd2 {[%emt 0:02:55]} h4 {[%emt 0:01:39]} 24. h3 {[%emt 0:00:49]} Rg5 {[%emt 0:00:41]} 25. Rd4 {[%emt 0:03:32]} Bxh3 {[%emt 0:03:21]} 26. Rxh4 {[%emt 0:00:33]} Be6 {[%emt 0:00:13]} 27. Kh2 {[%emt 0:08:47]} Kg7 {[%emt 0:01:25]} 28. Rh1 {[%emt 0:03:49]} Qe5+ {[%emt 0:02:08]} 29. Kg1 {[%emt 0:02:27]} Qxe2 {[%emt 0:00:20]} 30. Bxe2 {[%emt 0:00:01]} Ra5 {[%emt 0:00:33]} 31. a4 {[%emt 0:01:12]} Rd8 {[%emt 0:00:14]} 32. Re4 {[%emt 0:06:46]} b5 {[%emt 0:02:19]} 33. cxb5 {[%emt 0:02:11]} axb5 {[%emt 0:00:18]} 34. axb5 {[%emt 0:00:50]} Ra1+ {[%emt 0:00:32]} 35. Bf1 {[%emt 0:01:16]} Rdd1 {[%emt 0:00:18]} 36. Kh2 {[%emt 0:01:04]} Rxf1 {[%emt 0:00:22]} 37. Rxf1 {[%emt 0:00:08]} Rxf1 {[%emt 0:00:05]} 38. b6 {[%emt 0:00:33]} Bd5 {[%emt 0:05:05]} 39. Rb4 {[%emt 0:02:33]} Rxf2 {[%emt 0:00:54]} 40. b7 {[%emt 0:00:40]} Rxg2+ {[%emt 0:00:48]} 41. Kh3 {[%emt 0:30:21]} Bxb7 {[%emt 0:30:13]} 42. Rxb7 {[%emt 0:00:13]} Rb2 {[%emt 0:00:07]} 43. Kg4 {[%emt 0:00:24]} f5+ {[%emt 0:01:00]} 44. Kg5 {[%emt 0:00:00]} Rg2+ {[%emt 0:00:00]} 45. Kf4 {[%emt 0:00:00]} Kf6 {[%emt 0:00:00]} 46. b4 {[%emt 0:00:00]} g5+ {[%emt 0:00:00]} 47. Kf3 {[%emt 0:00:00]} Rb2 {[%emt 0:00:00]} 48. Rb6+ {[%emt 0:00:00]} e6 {[%emt 0:00:00]} 49. b5 {[%emt 0:00:00]} Ke5 {[%emt 0:00:00]} 50. Rb8 {[%emt 0:00:00]} g4+ {[%emt 0:00:00]} 51. Kg3 {[%emt 0:00:00]} Rb3+ {[%emt 0:00:00]} 52. Kg2 {[%emt 0:00:00]} f4 {[%emt 0:00:00]} 53. Rg8 {[%emt 0:00:00]} Rb2+ {[%emt 0:00:00]} 54. Kg1 {[%emt 0:00:00]} g3 {[%emt 0:00:00]} 55. Kf1 {[%emt 0:00:00]} Ke4 {[%emt 0:00:00]} 56. Re8 {[%emt 0:00:00]} e5 {[%emt 0:00:00]} 57. Rb8 {[%emt 0:00:00]} Ke3 {[%emt 0:00:00] normal} 0-1

[Event "GER-ch Youth U16w 2019"]
[Site "Willingen"]
[Date "2019.06.14"]
[Round "8.13"]
[White "Genova, Magdalina"]
[Black "Schneider, Katharina"]
[Result "0-1"]
[ECO "A34"]
[WhiteElo "1421"]
[BlackElo "1784"]
[Annotator "NA"]
[PlyCount "78"]
[EventDate "2019.06.07"]
[EventType "swiss"]
[EventRounds "9"]
[EventCountry "GER"]
[SourceTitle "playchess.com"]
[Source "ChessBase"]
[SourceQuality "1"]
[TimeControl "40/5400+30:1800+30"]

1. c4 c5 {[%emt 0:00:00]} 2. Nc3 {[%emt 0:00:00]} Nf6 {[%emt 0:00:00]} 3. g3 {[%emt 0:02:32]} d5 {[%emt 0:00:00]} 4. cxd5 {[%emt 0:00:13]} Nxd5 {[%emt 0:00:00]} 5. Bg2 {[%emt 0:02:16]} Nc7 {[%emt 0:00:00]} 6. d3 {[%emt 0:06:40]} e5 {[%emt 0:03:17]} 7. Nf3 {[%emt 0:02:07]} Nc6 {[%emt 0:03:34]} 8. O-O {[%emt 0:04:11]} Be7 {[%emt 0:03:36]} 9. b3 {[%emt 0:00:47]} Be6 {[%emt 0:01:23]} 10. Bb2 {[%emt 0:00:37]} f6 {[%emt 0:04:54]} 11. Nd2 {[%emt 0:15:59]} O-O {[%emt 0:04:14]} 12. Nc4 {[%emt 0:04:46]} Qd7 {[%emt 0:03:32]} 13. Re1 {[%emt 0:07:19]} Rac8 {[%emt 0:05:50]} 14. Ne4 {[%emt 0:05:57]} b6 {[%emt 0:02:58]} 15. a4 {[%emt 0:02:53]} Rfd8 {[%emt 0:07:27]} 16. Ned2 {[%emt 0:02:38]} Nd5 {[%emt 0:05:43]} 17. a5 {[%emt 0:19:17]} b5 {[%emt 0:04:45]} 18. Ne3 {[%emt 0:04:45]} a6 {[%emt 0:11:49]} 19. Ne4 {[%emt 0:02:15]} Nd4 {[%emt 0:02:50]} 20. Nxd5 {[%emt 0:05:03]} Bxd5 {[%emt 0:00:19]} 21. Nd2 {[%emt 0:00:26]} Bxg2 {[%emt 0:07:06]} 22. Kxg2 {[%emt 0:00:05]} f5 {[%emt 0:00:59]} 23. Rc1 {[%emt 0:06:21]} Bg5 {[%emt 0:07:03]} 24. e3 {[%emt 0:01:27]} Qd5+ {[%emt 0:00:11]} 25. e4 {[%emt 0:00:59]} fxe4 {[%emt 0:01:25]} 26. dxe4 {[%emt 0:00:56]} Qe6 {[%emt 0:04:03]} 27. Rc3 {[%emt 0:00:51]} Nxb3 {[%emt 0:03:42]} 28. Qxb3 {[%emt 0:00:35]} c4 {[%emt 0:00:05]} 29. Nxc4 {[%emt 0:00:41]} bxc4 {[%emt 0:00:05]} 30. Qc2 {[%emt 0:00:52]} Bd2 {[%emt 0:00:22]} 31. Rc1 {[%emt 0:00:49]} Bxc3 {[%emt 0:02:17]} 32. Bxc3 {[%emt 0:00:05]} Rd3 {[%emt 0:01:26]} 33. Qb2 {[%emt 0:00:31]} Qg4 {[%emt 0:03:11]} 34. Bxe5 {[%emt 0:00:47]} Qxe4+ {[%emt 0:00:31]} 35. Kg1 {[%emt 0:00:23]} Rcd8 {[%emt 0:00:23]} 36. Qa1 {[%emt 0:00:29]} Qf3 {[%emt 0:01:29]} 37. Re1 {[%emt 0:00:37]} Rd1 {[%emt 0:00:38]} 38. Qc3 {[%emt 0:00:12]} Rxe1+ {[%emt 0:00:31]} 39. Qxe1 {[%emt 0:00:02]} Rd1 {[%emt 0:00:15] normal} 0-1